fUST/lending_fUST_20240124
["ID","MTS","AMOUNT","RATE_DAILY","PERIOD"]
[312621043,1706102879792,-500.0,0.00049999,120]
[312621044,1706102879815,-500.0,0.00049999,120]
[312621045,1706102879839,-500.0,0.00049999,120]
[312621046,1706102879862,-500.0,0.00049999,120]
[312621047,1706102879885,-500.0,0.00049999,120]
[312621048,1706102879909,-500.0,0.00049999,120]
[312621049,1706102879934,-500.0,0.00049999,120]
[312621050,1706102879958,-500.0,0.00049999,120]
[312621051,1706102879982,-500.0,0.00049999,120]
[312621052,1706102880005,-500.0,0.00049999,120]
[312621053,1706102880031,-596.17666846,0.00049999,120]
[312621054,1706102880054,-500.0,0.00049999,120]
[312621055,1706102880078,-500.0,0.00049999,120]
[312621056,1706102880103,-341015.60692089,0.0005,120]
[312621057,1706102888969,-400000.0,0.0005,120]
[312621058,1706102892615,-258984.39307911,0.0005,120]
[312621059,1706102892639,-200.0,0.0005,120]
[312621060,1706102892666,-366.0,0.0005,120]
[312621061,1706102892691,-140449.60692089,0.00051,120]
[312621062,1706102900998,-400000.0,0.00051,120]
[312621103,1706103033705,-154.86062544,0.00018451,3]
[312621104,1706103033714,-6309.55778654,0.00018451,2]
[312621105,1706103033726,-14597.03853781,0.00018451,2]
[312621106,1706103033735,-294.97608218,0.00018452,2]
[312621107,1706103033744,-199.30151643,0.00018452,2]
[312621108,1706103033753,-170.98714659,0.00018452,2]
[312621109,1706103033763,-4173.05485959,0.00018452,2]
[312621110,1706103033772,-1484.61502997,0.00018453,2]
[312621111,1706103033781,-262.41441764,0.00018454,2]
[312621112,1706103033790,-2618.67366415,0.00018454,2]
[312621141,1706103038630,-323.68259118,0.0001845,2]
[312621143,1706103038639,-1993.99921548,0.00018451,2]
[312621145,1706103038648,-1128.23794357,0.00018454,2]
[312621147,1706103038658,-154.92253873,0.00018455,2]
[312621149,1706103038667,-1493.0231482,0.00018462,2]
[312621151,1706103038676,-169.60396329,0.00018469,2]
[312621153,1706103038685,-2104.07287401,0.00018569,2]
[312621155,1706103038694,-1782.681939,0.00018593,2]
[312621157,1706103038704,-154.93802479,0.000187,2]
[312621159,1706103038713,-154.93802479,0.000187,2]
[312621161,1706103038722,-154.93802479,0.000187,2]
[312621163,1706103038731,-261.13863683,0.00018748,2]
[312621165,1706103038740,-155.25487576,0.00018749,2]
[312621167,1706103038749,-169.60396328,0.00018919,2]
[312621169,1706103038759,-1.81375918,0.00019369,2]
[312621250,1706103042481,-167.7902041,0.00019369,2]
[312621251,1706103042490,-169.60396328,0.0001982,2]
[312621252,1706103042501,-2084.29033128,0.0002,2]
[312621253,1706103042511,-155.22476586,0.00020226,2]
[312621254,1706103042520,-154.92253873,0.00020236,2]
[312621255,1706103042529,-154.92253873,0.00020237,2]
[312621256,1706103042538,-169.60396328,0.0002027,2]
[312621257,1706103042548,-1345.83,0.0002069,3]
[312621258,1706103042557,-2318.13,0.0002069,3]
[312621259,1706103042566,-1581.44294841,0.0002069,3]
[312621260,1706103042582,-350.33705159,0.0002069,3]
[312621261,1706103042592,-17836.47063416,0.000207,2]
[312621262,1706103042606,-24704.999998,0.000207,2]
[312621263,1706103042617,-9164.81149097,0.000207,2]
[312621491,1706103274376,24900.0,0.00017922,2]
[312621492,1706103310718,155.4735752,0.00015056,2]
[312621493,1706103315534,1493.0231482,0.00017976,2]
[312621494,1706103317232,1109.98253014,0.00017922,2]
[312621495,1706103335236,1109.98253014,0.00017922,2]
[312621496,1706103351250,200.05890869,0.00017922,2]
[312621497,1706103383284,1109.3928185,0.00017922,2]
[312621498,1706103398218,1114.82223446,0.00017922,2]
[312621499,1706103401072,400.34418445,0.00017922,2]
[312621500,1706103401271,1109.3928185,0.00017922,2]
[312621501,1706103405797,343.09681091,0.00017922,2]
[312621502,1706103417254,1109.3928185,0.00017922,2]
[312621503,1706103418207,1114.82223446,0.00017922,2]
[312621504,1706103418967,326.19410243,0.00017922,2]
[312621505,1706103420823,154.92253873,0.00017922,2]
[312621506,1706103438213,321.87653022,0.00017922,2]
[312621507,1706103457284,170.20854969,0.00017942,2]
[312621508,1706103549117,13759.2755042,0.00017975,2]
[312621509,1706103584106,250.0,0.00017901,2]
[312621510,1706103639186,1782.681939,0.00017733,2]
[312621511,1706103830685,154.8915759,0.00018,2]
[312621512,1706103833388,181.02826495,0.00018,2]
[312621513,1706103834489,2819.62110333,0.00018,2]
[312621514,1706103837295,213.48757656,0.00018,2]
[312621515,1706103841902,4173.05485959,0.00018,2]
[312621516,1706103845547,154.8915759,0.00018,3]
[312621517,1706103849679,3746.91160772,0.00018,2]
[312621518,1706103850646,154.8915759,0.00018,2]
[312621519,1706103852929,2819.62110333,0.00015056,2]
[312621520,1706103854001,302.00997705,0.00018,2]
[312621521,1706103856273,262.41441764,0.00018,2]
[312621522,1706103866852,3486.61806957,0.00018,2]
[312621523,1706103870905,1469.02259483,0.00015056,2]
[312621524,1706103873997,323.68259118,0.00018,2]
[312621525,1706103874633,243.19997644,0.00018,2]
[312621526,1706103879614,1993.99921548,0.00018,2]
[312621527,1706103882305,154.86062544,0.00018,2]
[312621528,1706103894904,1469.02259483,0.00015056,2]
[312621529,1706103916904,1469.02259483,0.00015056,2]
[312621530,1706103935349,1469.02259483,0.00015056,2]
[312621531,1706103954910,1469.02259483,0.00015056,2]
[312621533,1706103978921,1469.02259483,0.00015056,2]
[312621534,1706103996930,1469.02259483,0.00015056,2]
[312621535,1706104014944,1469.02259483,0.00015056,2]
[312621536,1706104032926,1469.02259483,0.00015056,2]
[312621537,1706104054954,1117.79196935,0.00015522,2]
[312621538,1706104064162,891.340969,0.00017954,2]
[312621539,1706104168098,-154.86062544,0.00018011,2]
[312621540,1706104168130,-3746.91160772,0.00018012,2]
[312621541,1706104168155,-1484.61502997,0.00018013,2]
[312621542,1706104168178,-260.95376915,0.00018014,2]
[312621543,1706104168200,-154.86062544,0.00018014,2]
[312621544,1706104168221,-302.00997705,0.00018015,2]
[312621545,1706104168247,-154.86062544,0.00018015,3]
[312621546,1706104168268,-309.75222607,0.00018029,2]
[312621547,1706104168290,-828.47679764,0.0001803,2]
[312621570,1706104232920,-711.92584623,0.00018008,2]
[312621571,1706104232930,-3486.61806957,0.00018008,2]
[312621572,1706104232940,-154.95351395,0.00018008,2]
[312621573,1706104232949,-1242.8279432,0.00018009,2]
[312621574,1706104232959,-20879.12353862,0.0001801,2]
[312621575,1706104232968,-211.59032414,0.0001801,2]
[312621576,1706104232978,-903.88612378,0.0001801,2]
[312621577,1706104232987,-154.86062544,0.0001801,2]
[312621578,1706104232997,-3586.6274914,0.0001803,2]
[312621579,1706104233007,-977.99536434,0.00018067,2]
[312621580,1706104233016,-154.86062544,0.00018067,3]
[312621581,1706104233026,-170.20854967,0.0001927,2]
[312621583,1706104233036,-2683.06063507,0.00019873,2]
[312621587,1706104233130,-2104.07287401,0.00020074,2]
[312621588,1706104233139,-155.13940037,0.00020074,2]
[312621589,1706104233149,-163.07793606,0.00020074,2]
[312621590,1706104233158,-176.97412383,0.00020074,2]
[312621591,1706104233168,-1041.78232073,0.00020074,2]
[312621592,1706104233177,-230.8440134,0.00020074,2]
[312621593,1706104233186,-262.18135952,0.00020074,2]
[312621594,1706104233195,-324.22596755,0.00020074,2]
[312621595,1706104233205,-243.0662059,0.00020074,2]
[312621596,1706104233214,-1239.68723936,0.00020074,2]
[312621597,1706104233223,-155.34776427,0.00020074,2]
[312621598,1706104233233,-517.56450602,0.00020074,2]
[312621599,1706104233242,-154.86062544,0.00020074,2]
[312621600,1706104233252,-155.26356198,0.00020074,2]
[312621601,1706104233262,-304.09220406,0.00020074,2]
[312621602,1706104233272,-1141.38351058,0.00020074,2]
[312621603,1706104233281,-301.85147671,0.00020074,2]
[312621604,1706104233291,-155.02046575,0.00020074,2]
[312621605,1706104233300,-2039.05381066,0.00020074,2]
[312621606,1706104233310,-1361.35996089,0.00020074,5]
[312621607,1706104233319,-588.35431441,0.00020075,2]
[312621608,1706104233328,-155.2509762,0.00020075,2]
[312621609,1706104233338,-8749.77450425,0.00020076,2]
[312621626,1706104237860,-4571.26007439,0.00020076,2]
[312621627,1706104237873,-479.56991045,0.00020077,5]
[312621628,1706104237890,-4203.55102356,0.00020077,5]
[312621629,1706104237900,-1845.97,0.00020479,3]
[312621630,1706104237915,-4889.37187001,0.00020489,2]
[312621631,1706104237933,-156.19632424,0.00020489,2]
[312621632,1706104237945,-170.20854967,0.00020598,2]
[312621633,1706104237957,-2215.16,0.00020678,3]
[312621634,1706104237972,-1418.76,0.00020688,3]
[312621635,1706104237986,-261.13863683,0.00020696,2]
[312621637,1706104237999,-154.93802479,0.00020696,2]
[312621640,1706104238014,-154.93802479,0.00020697,2]
[312621642,1706104238028,-1041.79055552,0.00020698,2]
[312621644,1706104238039,-171.84870081,0.00020698,2]
[312621646,1706104238051,-155.02467136,0.00020698,2]
[312621648,1706104238064,-155.4003804,0.00020698,2]
[312621650,1706104238079,-154.92253873,0.00020698,2]
[312621653,1706104238091,-329.53567279,0.00020698,2]
[312621655,1706104238103,-3662.98744295,0.00020698,2]
[312621657,1706104238116,-7145.95906869,0.00020698,2]
[312621660,1706104238130,-379.8622035,0.00020698,2]
[312621662,1706104238144,-8512.33675628,0.00020698,2]
[312621665,1706104238155,-179.33684104,0.00020698,2]
[312621667,1706104238167,-237.63369757,0.00020698,2]
[312621669,1706104238178,-265.48221302,0.00020698,2]
[312621671,1706104238190,-154.92253873,0.00020698,2]
[312621673,1706104238202,-242.52737121,0.00020699,2]
[312621676,1706104238213,-10339.82421914,0.00020699,2]
[312621678,1706104238223,-1000.0,0.00020699,3]
[312621680,1706104238235,-1000.0,0.00020699,3]
[312621682,1706104238246,-17.91632499,0.00020699,3]
[312621685,1706104238339,1730.81012745,0.00016,5]
[312621686,1706104240803,-982.08367501,0.00020699,3]
[312621688,1706104240817,-1000.0,0.00020699,3]
[312621689,1706104240829,-1000.0,0.00020699,3]
[312621690,1706104240841,-1000.0,0.00020699,3]
[312621691,1706104240854,-1000.0,0.00020699,3]
[312621692,1706104240866,-1000.0,0.00020699,3]
[312621693,1706104240878,-440.58350911,0.00020699,3]
[312621694,1706104240890,-155.06328132,0.0002082,2]
[312621695,1706104240902,-1253.41868812,0.0002082,2]
[312621696,1706104240914,-555.36580163,0.00020821,2]
[312621697,1706104240925,-153.0,0.00020822,2]
[312621699,1706104240937,-1296.51157599,0.00020864,2]
[312621701,1706104240947,-154.98513156,0.00020864,2]
[312621702,1706104240956,-165.74628861,0.00020865,2]
[312621703,1706104240966,-369.27819013,0.00020955,2]
[312621705,1706104240975,-1538.31,0.00020957,3]
[312621706,1706104241115,-500.0,0.00020967,2]
[312621707,1706104241128,-415.29087973,0.00020967,2]
[312621708,1706104241137,-500.0,0.00020967,2]
[312621709,1706104241147,-500.0,0.00020967,2]
[312621710,1706104241156,-500.0,0.00020967,2]
[312621711,1706104241165,-302.54956966,0.00020967,2]
[312621712,1706104241174,-220.8833423,0.00020967,2]
[312621713,1706104241183,-500.0,0.00020967,2]
[312621714,1706104241192,-500.0,0.00020967,2]
[312621715,1706104241202,-500.0,0.00020967,2]
[312621716,1706104241211,-99.53162089,0.00020967,2]
[312621717,1706104241225,-400.46837911,0.00020967,2]
[312621718,1706104241234,-500.0,0.00020967,2]
[312621719,1706104241243,-500.0,0.00020967,2]
[312621720,1706104241253,-500.0,0.00020967,2]
[312621721,1706104241264,-500.0,0.00020967,2]
[312621722,1706104241273,-500.0,0.00020967,2]
[312621723,1706104241282,-500.0,0.00020967,2]
[312621724,1706104241293,-500.0,0.00020967,2]
[312621725,1706104241302,-500.0,0.00020967,2]
[312621726,1706104241311,-12718.18585356,0.00020968,2]
[312621727,1706104241326,-27143.12795078,0.00020968,2]
[312621728,1706104241335,-3689.02569709,0.00021,2]
[312621729,1706104241345,-153.0,0.0002137,2]
[312621730,1706104241354,-153.0,0.0002137,2]
[312621731,1706104241365,-153.0,0.0002137,2]
[312621732,1706104241374,-150.0,0.00021629,2]
[312621733,1706104241383,-166.666666,0.00021918,2]
[312621734,1706104241392,-154.4105762,0.00021918,2]
[312621735,1706104241403,-306.0,0.00021918,2]
[312621736,1706104241411,-153.0,0.00021918,2]
[312621737,1706104241422,-199.2894744,0.00021918,2]
[312621738,1706104241431,-153.0,0.00021918,2]
[312621739,1706104241441,-153.0,0.00021918,2]
[312621740,1706104241451,-199.2894744,0.00021918,2]
[312621741,1706104241461,-153.0,0.00021918,2]
[312621742,1706104241471,-199.2894744,0.00021918,2]
[312621743,1706104241482,-397.3519509,0.00021918,2]
[312621744,1706104241492,-3969.42099078,0.00022,2]
[312621745,1706104241503,-154.8915759,0.00022,2]
[312621746,1706104241521,-426.10577832,0.00022,2]
[312621747,1706104241530,-500.0,0.00022019,2]
[312621748,1706104241539,-388.130742,0.00022019,2]
[312621749,1706104241549,-182.05135396,0.00022019,2]
[312621750,1706104241560,-310.35065569,0.00022019,2]
[312621751,1706104241569,-425.52440274,0.00022019,2]
[312621752,1706104241578,-332.20175681,0.00022019,2]
[312621753,1706104241587,-568.01773504,0.0002202,2]
[312621754,1706104241601,-50030.76867238,0.0002202,2]
[312621755,1706104241612,-6664.05599578,0.0002202,2]
[312621756,1706104241623,-3606.27720025,0.0002202,2]
[312621757,1706104241635,-3067.54345876,0.0002202,2]
[312621766,1706104242971,-8310.12417605,0.0002202,2]
[312621824,1706104333732,185.45037393,0.00017911,2]
[312621825,1706104361402,-261.19714491,0.00018025,2]
[312621826,1706104361429,-154.86062544,0.00018025,2]
[312621827,1706104361450,-154.86062544,0.00018026,2]
[312621828,1706104361470,-616.92156387,0.00018026,2]
[312621829,1706104361490,-521.1860001,0.00018026,2]
[312621830,1706104361510,-155.4003804,0.00018026,2]
[312621831,1706104361530,-154.86062544,0.00018027,2]
[312621832,1706104361550,-1579.8258689,0.00018027,2]
[312621833,1706104361576,-155.02467136,0.00018027,2]
[312621834,1706104361596,-5677.73170311,0.00018027,2]
[312621835,1706104361616,-21842.34230174,0.00018027,2]
[312621836,1706104361641,-154.86062544,0.00018028,3]
[312621837,1706104361661,-154.86062544,0.00018028,2]
[312621838,1706104361682,-4815.22334348,0.00018028,2]
[312621839,1706104361704,-19706.16354589,0.00018028,2]
[312621840,1706104361727,-154.86062544,0.00018029,2]
[312621841,1706104361747,-154.86062544,0.00018029,2]
[312621842,1706104361769,-15224.22613047,0.00018029,2]
[312621843,1706104361790,-164.04448597,0.0001803,2]
[312621844,1706104361810,-683.87536543,0.0001803,2]
[312621845,1706104361833,-8719.81311629,0.00019815,2]
[312621846,1706104364694,154.86062544,0.00017911,2]
[312621849,1706104378165,154.86062544,0.00016222,3]
[312621850,1706104380701,156.23477142,0.00017911,2]
[312621851,1706104396240,154.86062544,0.0001622,3]
[312621852,1706104412174,154.86062544,0.0001622,3]
[312621854,1706104432118,154.86062544,0.00016219,3]
[312621856,1706104450142,154.86062544,0.00016217,3]
[312621861,1706104470125,154.86062544,0.00016217,3]
[312621863,1706104486152,154.86062544,0.00016218,3]
[312621864,1706104502139,154.86062544,0.00016215,3]
[312621865,1706104508554,445.670484,0.00017021,2]
[312621868,1706104517669,170.20854967,0.00017917,2]
[312621869,1706104528132,154.86062544,0.00016215,3]
[312621871,1706104550144,154.86062544,0.00016215,3]
[312621872,1706104566150,154.86062544,0.00016214,3]
[312621873,1706104584138,154.86062544,0.00016214,3]
[312621874,1706104606146,154.86062544,0.0001621,3]
[312621875,1706104628255,154.86062544,0.0001621,3]
[312621876,1706104648152,154.86062544,0.0001621,3]
[312621877,1706104668154,154.86062544,0.00016205,3]
[312621879,1706104688262,154.86062544,0.00016205,3]
[312621880,1706104708153,154.86062544,0.00016205,3]
[312621881,1706104724153,154.86062544,0.00016219,3]
[312621882,1706104742159,90.65907961,0.00016218,3]
[312621883,1706104742193,64.20154583,0.00016218,3]
[312621884,1706104762168,154.86062544,0.00016218,3]
[312621885,1706104782165,154.86062544,0.00016218,3]
[312621891,1706104804166,154.86062544,0.00016053,3]
[312621907,1706104826171,154.86062544,0.0001605,3]
[312621911,1706104844166,154.86062544,0.00016047,3]
[312621914,1706104862197,154.86062544,0.00016047,3]
[312621917,1706104878190,154.86062544,0.00016045,3]
[312621919,1706104896180,154.86062544,0.00016042,3]
[312621922,1706104922197,154.86062544,0.0001604,3]
[312621926,1706104944184,154.86062544,0.00016033,3]
[312621929,1706104960188,154.86062544,0.00016033,3]
[312621932,1706104980845,2654.8913176,0.00016814,2]
[312621933,1706104984187,154.86062544,0.00016028,3]
[312621936,1706104998273,154.86062544,0.00016027,3]
[312621937,1706105003530,222.835242,0.00016811,2]
[312621939,1706105020196,154.86062544,0.00016023,3]
[312621940,1706105036195,154.86062544,0.00016022,3]
[312621941,1706105060192,154.86062544,0.00016021,3]
[312621942,1706105078228,154.86062544,0.00016014,3]
[312621943,1706105100200,154.86062544,0.00016012,3]
[312621944,1706105124201,154.86062544,0.00016008,3]
[312621945,1706105142212,154.86062544,0.00016008,3]
[312621946,1706105164205,154.86062544,0.00016006,3]
[312621947,1706105169105,1140.94905471,0.00013339,2]
[312621948,1706105180204,154.86062544,0.00016,3]
[312621949,1706105200213,154.86062544,0.00015997,2]
[312621950,1706105216209,154.86062544,0.00015996,2]
[312621951,1706105232208,154.86062544,0.00015993,2]
[312621952,1706105246214,154.86062544,0.00015991,2]
[312621953,1706105252436,2794.32931112,0.00029,30]
[312621954,1706105270234,154.86062544,0.00015991,2]
[312621955,1706105290339,154.86062544,0.00015986,2]
[312621956,1706105310219,154.86062544,0.00015983,2]
[312621957,1706105328220,154.86062544,0.00015979,2]
[312621958,1706105346229,154.86062544,0.00015977,2]
[312621959,1706105364229,154.86062544,0.00015976,2]
[312621960,1706105386236,154.86062544,0.0001597,2]
[312621961,1706105400422,806.72220034,0.00016747,2]
[312621962,1706105400452,10000.0,0.00016747,2]
[312621963,1706105404243,154.86062544,0.00015967,2]
[312621964,1706105426235,154.86062544,0.00015069,2]
[312621997,1706105431943,-154.86062544,0.00016742,2]
[312621999,1706105431952,-323.68259118,0.00016742,2]
[312622000,1706105431961,-154.86062544,0.00016742,2]
[312622001,1706105431971,-137.32496685,0.00016742,2]
[312622002,1706105432993,-424.44856373,0.00016742,2]
[312622003,1706105433003,-167.05007612,0.00016742,2]
[312622004,1706105433013,-154.86062544,0.00016742,2]
[312622005,1706105433023,-222.835242,0.00016743,2]
[312622006,1706105433032,-2039.5598213,0.00016743,2]
[312622007,1706105433041,-3486.61806957,0.00016743,2]
[312622008,1706105433050,-166.72224739,0.00016744,2]
[312622010,1706105433060,-154.86062544,0.00016744,2]
[312622012,1706105433069,-588.5086678,0.00016744,2]
[312622014,1706105433078,-262.41441764,0.00016744,2]
[312622015,1706105433087,-154.86062544,0.00016744,2]
[312622016,1706105433096,-154.86062544,0.00016744,2]
[312622017,1706105433106,-522.24897159,0.00016744,2]
[312622018,1706105433114,-154.97435718,0.00016744,2]
[312622019,1706105433124,-161.07323855,0.00016744,2]
[312622020,1706105433133,-243.19997644,0.00016745,2]
[312622021,1706105433143,-178.96550385,0.00016745,2]
[312622022,1706105433152,-2035.08647523,0.00016745,2]
[312622023,1706105433162,-21690.99033113,0.00016745,2]
[312622024,1706105433171,-261.19714491,0.00016745,2]
[312622025,1706105433180,-711.92584623,0.00016745,2]
[312622026,1706105433190,-154.86062544,0.00016745,2]
[312622027,1706105433199,-19706.16354589,0.00016745,2]
[312622028,1706105433209,-154.86062544,0.00016746,2]
[312622029,1706105433218,-638.74959921,0.00016746,2]
[312622030,1706105433228,-4815.22334348,0.00016746,2]
[312622031,1706105433239,-154.86062544,0.00016746,2]
[312622032,1706105433249,-329.63381135,0.00016746,2]
[312622033,1706105433258,-265.548392,0.00016746,2]
[312622034,1706105433268,-7962.34091115,0.00016746,2]
[312622035,1706105433278,-14093.27779966,0.00016747,2]
[312622036,1706105433287,-155.09282659,0.00017741,2]
[312622037,1706105433297,-154.86062544,0.00017742,2]
[312622038,1706105433306,-154.86062544,0.00017742,2]
[312622039,1706105433316,-154.86062544,0.00017742,2]
[312622040,1706105433325,-181.02826495,0.00017742,2]
[312622041,1706105433334,-154.86062544,0.00017742,2]
[312622042,1706105433344,-3746.91160772,0.00017743,2]
[312622043,1706105433354,-20879.12353862,0.00017743,2]
[312622044,1706105433363,-1993.99921548,0.00017743,2]
[312622045,1706105433373,-595.27318689,0.00017743,2]
[312622046,1706105433383,-8764.16069463,0.00017744,2]
[312622047,1706105433392,-154.86062544,0.00017744,2]
[312622048,1706105433402,-1253.78104744,0.00017744,2]
[312622049,1706105433412,-154.86062544,0.00017744,2]
[312622050,1706105433421,-2142.70984841,0.00017744,2]
[312622051,1706105433433,-1962.01786402,0.00017744,2]
[312622052,1706105433443,-302.00997705,0.00017745,2]
[312622053,1706105433452,-568.01902971,0.00017745,2]
[312622054,1706105433463,-1011.80683919,0.00017745,2]
[312622055,1706105433474,-218.35919878,0.00017745,2]
[312622070,1706105438007,-199.30151643,0.00016741,2]
[312622072,1706105438016,-1242.8279432,0.00016741,2]
[312622074,1706105438026,-644.5849569,0.00016741,2]
[312622075,1706105438036,-154.86062544,0.00016741,2]
[312622077,1706105438045,-7961.27448091,0.00016742,2]
[312622098,1706105438240,-170.98714659,0.00016741,2]
[312622100,1706105438250,-7262.95164956,0.00016742,2]
[312622102,1706105438260,-18909.22401992,0.00016743,2]
[312622104,1706105438269,-15919.38726516,0.00016743,2]
[312622106,1706105438278,-20906.59632435,0.00016744,2]
[312622108,1706105438287,-658.24111914,0.00017745,2]
[312622110,1706105438296,-156.07097879,0.00017745,2]
[312622112,1706105438305,-36974.74812136,0.00017745,2]
[312622114,1706105438314,-1294.07008414,0.00017746,2]
[312622116,1706105438323,-154.86062544,0.00017746,2]
[312622118,1706105438332,-154.86062544,0.00017747,2]
[312622120,1706105438342,-1400.39782806,0.00017762,2]
[312622122,1706105438352,-154.9690062,0.00017785,2]
[312622124,1706105438361,-2002.61413331,0.00017785,2]
[312622126,1706105438370,-426.87305218,0.00017815,2]
[312622128,1706105438380,-154.95351395,0.00017815,2]
[312622130,1706105438389,-154.86062544,0.00018019,2]
[312622131,1706105438399,-256.286547,0.0001802,2]
[312622133,1706105438409,-589.77979486,0.00018021,2]
[312622135,1706105438418,-81325.10221941,0.00018023,2]
[312622137,1706105438427,-155.0309133,0.00018024,2]
[312622139,1706105438436,-616.7500659,0.00018024,2]
[312622141,1706105438446,-156.03698698,0.00018024,2]
[312622143,1706105438455,-159.726977,0.00019178,2]
[312622145,1706105438465,-977.99536434,0.00019816,2]
[312622147,1706105438474,-1198.3823456,0.0002,2]
[312622149,1706105438483,-50000.0,0.00020336,2]
[312622151,1706105438494,-151.0,0.00020632,2]
[312622153,1706105438503,-500.0,0.00020822,2]
[312622155,1706105438513,-200.63739241,0.00020822,2]
[312622157,1706105438523,-500.0,0.00020822,2]
[312622159,1706105438533,-544.17666846,0.00020822,2]
[312622161,1706105438542,-680.58141423,0.00021102,2]
[312622163,1706105438551,-154.93802479,0.00021352,2]
[312622180,1706105438700,-154.92253873,0.00021352,2]
[312622182,1706105438711,-5000.0,0.00021356,5]
[312622184,1706105438720,-222.0326855,0.00021917,2]
[312622186,1706105438730,-166.666666,0.00021918,2]
[312622188,1706105438739,-153.0,0.00021918,2]
[312622190,1706105438748,-426.10577832,0.00022,2]
[312622192,1706105438757,-3969.42099078,0.00022,2]
[312622194,1706105438766,-154.86062544,0.00022,2]
[312622196,1706105438775,-154.95351395,0.00022017,2]
[312622198,1706105438784,-2103.40493137,0.00022017,2]
[312622200,1706105438793,-3130.04768523,0.00022017,2]
[312622202,1706105438802,-526.75292248,0.00022018,2]
[312622204,1706105438812,-205.71896243,0.00022018,2]
[312622206,1706105438821,-154.95351395,0.00022018,2]
[312622208,1706105438830,-903.63325516,0.00022018,2]
[312622210,1706105438839,-246.21885002,0.00022018,2]
[312622212,1706105438848,-260.87494487,0.00022018,2]
[312622214,1706105438857,-154.86062544,0.0002202,2]
[312622216,1706105438866,-21383.87966041,0.0002212,2]
[312622218,1706105438875,-623.02907071,0.00022157,2]
[312622220,1706105438884,-153.0,0.00022218,2]
[312622222,1706105438894,-153.0,0.00022218,2]
[312622224,1706105438903,-166.666666,0.00022431,2]
[312622226,1706105438913,-199.2894744,0.00022518,2]
[312622228,1706105438922,-199.2894744,0.00022518,2]
[312622230,1706105438931,-166.666666,0.00022944,2]
[312622232,1706105438940,-1415.66703516,0.00023,2]
[312622234,1706105438949,-199.2894744,0.00023018,2]
[312622236,1706105438958,-5000.0,0.00023197,2]
[312622238,1706105438967,-2322.3812989,0.00023197,2]
[312622240,1706105438976,-5000.0,0.00023229,2]
[312622241,1706105438989,-5000.0,0.00023229,2]
[312622243,1706105438998,-8459.27560468,0.00023229,2]
[312622245,1706105439008,-5000.0,0.00023229,2]
[312622247,1706105439017,-5000.0,0.00023229,2]
[312622249,1706105439026,-5000.0,0.00023229,2]
[312622251,1706105439036,-5000.0,0.00023229,2]
[312622253,1706105439044,-5000.0,0.00023229,2]
[312622255,1706105439053,-5000.0,0.00023229,2]
[312622257,1706105439063,-5000.0,0.00023229,2]
[312622259,1706105439072,-5000.0,0.00023229,2]
[312622261,1706105439082,-5000.0,0.00023236,2]
[312622263,1706105439091,-5000.0,0.00023236,2]
[312622265,1706105439100,-5000.0,0.00023242,2]
[312622267,1706105439109,-5000.0,0.00023253,2]
[312622269,1706105439119,-12530.26571913,0.00023253,2]
[312622271,1706105439128,-5000.0,0.00023262,2]
[312622273,1706105439138,-13748.0757588,0.00023262,2]
[312622275,1706105439147,-5000.0,0.00023262,2]
[312622277,1706105439156,-5000.0,0.00023262,2]
[312622279,1706105439166,-5000.0,0.00023262,2]
[312622281,1706105439174,-5000.0,0.00023262,2]
[312622283,1706105439184,-620.15145354,0.00023265,2]
[312622285,1706105439193,-5000.0,0.00023266,2]
[312622287,1706105439202,-5000.0,0.00023266,2]
[312622289,1706105439211,-5000.0,0.00023266,2]
[312622291,1706105439220,-166.666666,0.00023456,2]
[312622293,1706105439230,-151.0,0.00023508,2]
[312622295,1706105439239,-164.83127962,0.00023684,2]
[312622297,1706105439250,-3188.65551912,0.00023772,2]
[312622331,1706105441127,-555.52588132,0.00016743,2]
[312622332,1706105441137,-1811.34448088,0.00023772,2]
[312622333,1706105441146,-5000.0,0.00023772,2]
[312622334,1706105441154,-5000.0,0.00023772,2]
[312622335,1706105441163,-5000.0,0.00023772,2]
[312622336,1706105441172,-4094.68518371,0.00023806,2]